Workbook

Sheet Лист1
A1: http://www.pokerstars.co/ru/poker/room/rake/
A2: Лимит $ | B2: 25.11.2015 рук | C2: Рейк % | D2: Рейк 10ББ | E2: 02.12.2015 рук | F2: Рейк % | G2: Рейк 10ББ | H2: % изменения количества рук
A3: 0.02 | B3: 857000 | C3: 0.035 | D3: =A3*10*C3*B3 -> 5999 | E3: 1040000 | F3: 0.035 | G3: =A3*10*F3*E3 -> 7280 | H3: =E3/B3 -> 1.213535589
A4: 0.05 | B4: 242000 | C4: 0.0415 | D4: =A4*10*C4*B4 -> 5021.5 | E4: 567000 | F4: 0.0415 | G4: =A4*10*F4*E4 -> 11765.25 | H4: =E4/B4 -> 2.342975207
A5: 0.1 | B5: 400000 | C5: 0.045 | D5: =A5*10*C5*B5 -> 18000 | E5: 409000 | F5: 0.045 | G5: =A5*10*F5*E5 -> 18405 | H5: 1.0225
A6: 0.25 | B6: 298335 | C6: 0.045 | D6: =A6*10*C6*B6 -> 33562.6875 | E6: 334563 | F6: 0.045 | G6: =A6*10*F6*E6 -> 37638.3375 | H6: 1.121433958
A7: 0.5 | B7: 265818 | C7: 0.045 | D7: =A7*10*C7*B7 -> 59809.05 | E7: 264720 | F7: 0.045 | G7: =A7*10*F7*E7 -> 59562 | H7: 0.9958693542
A8: 1 | B8: 158764 | C8: 0.045 | D8: =A8*10*C8*B8 -> 71443.8 | E8: 163377 | F8: 0.045 | G8: =A8*10*F8*E8 -> 73519.65 | H8: 1.029055705
A9: 2 | B9: 94852 | C9: 0.045 | D9: =A9*10*C9*B9 -> 85366.8 | E9: 70492 | F9: 0.045 | G9: =A9*10*F9*E9 -> 63442.8 | H9: 0.743178847
A10: 4 | B10: 34747 | C10: 0.045 | D10: =A10*10*C10*B10 -> 62544.6 | E10: 30587 | F10: 0.045 | G10: =A10*10*F10*E10 -> 55056.6 | H10: 0.880277434
A11: 6 | B11: 22261 | C11: 0.045 | D11: =A11*10*C11*B11 -> 60104.7 | E11: 10778 | F11: 0.045 | G11: =A11*10*F11*E11 -> 29100.6 | H11: 0.4841651318
A12: 10 | B12: 17066 | C12: 0.045 | D12: =A12*10*C12*B12 -> 76797 | E12: 8096 | F12: 0.045 | G12: =A12*10*F12*E12 -> 36432 | H12: 0.474393531
A13: 20 | B13: 6546 | C13: 0.045 | D13: =A13*10*C13*B13 -> 58914 | E13: 3691 | F13: 0.045 | G13: =A13*10*F13*E13 -> 33219 | H13: 0.5638557898
A14: 50 | B14: 5020 | C14: 0.045 | D14: =A14*10*C14*B14 -> 112950 | E14: 2130 | F14: 0.045 | G14: =A14*10*F14*E14 -> 47925 | H14: 0.4243027888
B15: =SUM(B3:B14) -> 2402409 | D15: =SUM(D3:D14) -> 650513.1375 | E15: =SUM(E3:E14) -> 2904434 | G15: =SUM(G3:G14) -> 473346.2375

Sheet Лист2

Sheet Лист3
